Cogmind - Beta 10.1 @@@ ROGUE MODE // 2020.10.04 @ 13:47:00 Player: gorlork Result: Destroyed by H-66 Slayer with Gauss Rifle Performance ------------- Evolutions (4) 2000 Regions Visited (6) 1200 Robots Destroyed (31) 155 Value Destroyed (673) 673 Prototype IDs (1) 20 Alien Tech Used (0) 0 Bonus (0) 0 TOTAL SCORE: 4048 Bonus ------- None Cogmind --------- Core Integrity 0/850 Matter 96/300 Energy 99/100 System Corruption 1% Temperature Cool (0) Movement Core (50) Location -6/Factory Parts ------- > --- POWER (2) -------- (None) > --- PROPULSION (4) --- (None) > --- UTILITY (7) ------ Advanced Terrain Scan Processor Advanced Targeting Computer Core Analyzer > --- WEAPON (2) ------- (None) > --- INVENTORY (4) ---- Hacking Suite Flak Cannon Peak State ------------ > --- POWER ------------ Light Nuclear Core > --- PROPULSION ------- Medium Treads > --- UTILITY ---------- Advanced Terrain Scan Processor Advanced Targeting Computer Core Analyzer > --- WEAPON ----------- Enhanced Autogun Gauss Rifle > --- INVENTORY -------- (None) [Rating: 26] Favorites ----------- Power Ion Engine Engine Ion Engine Power Core Light Nuclear Core Propulsion Light Treads Treads Light Treads Leg Improved Titanium Leg Wheel Armored Wheel Flight Unit Flight Unit Utility Small Storage Unit Device Structural Scanner Storage Small Storage Unit Processor Signal Interpreter Weapon Assault Rifle Ballistic Gun Assault Rifle Ballistic Cannon Flak Cannon Launcher Heavy Missile Launcher Build | -11 -10 -10 -9 -8 -7 -6 ------- Run | Scr Mat Min Mat Mat Fac Fac Slots Evolved 8 | . . . 2 2 2 2 Power 1 | . . . . 1 . . Propulsion 2 | . . . . 1 . 1 Utility 5 | . . . 2 . 2 1 Weapon . | . . . . . . . Parts Attached 46 | 6 1 . 8 11 6 14 Power 9 | 1 . . 1 2 2 3 Engine 2 | 1 . . 1 . . . Core 7 | . . . . 2 2 3 Reactor . | . . . . . . . Propulsion 16 | 2 . . 2 4 2 6 Treads 5 | 2 . . 2 . . 1 Leg 2 | . . . . . 1 1 Wheel 5 | . . . . . 1 4 Hover . | . . . . . . . Flight 4 | . . . . 4 . . Utility 10 | 1 1 . 2 3 2 1 Device 5 | . 1 . 1 2 1 . Storage 1 | 1 . . . . . . Processor 4 | . . . 1 1 1 1 Hackware . | . . . . . . . Protection . | . . . . . . . Artifact . | . . . . . . . Weapon 11 | 2 . . 3 2 . 4 Energy Gun . | . . . . . . . Energy Cannon . | . . . . . . . Ballistic Gun 7 | 2 . . 1 2 . 2 Ballistic Cannon 3 | . . . 2 . . 1 Launcher 1 | . . . . . . 1 Special Weapon . | . . . . . . . Impact Weapon . | . . . . . . . Slashing Weapon . | . . . . . . . Piercing Weapon . | . . . . . . . Special Melee Weapon . | . . . . . . . Unidentified Prototypes 1 | . . . . 1 . . Parts Lost 23 | . . . 2 6 4 11 Power 2 | . . . . . 1 1 Propulsion 10 | . . . . 4 . 6 Utility 6 | . . . 1 1 3 1 Weapon 5 | . . . 1 1 . 3 Highest Loss Streak 4 | . . . 1 4 2 4 Average Slot Usage (%) 71 | . 96 100 97 76 37 38 Engine 6 | . 14 14 10 4 . . Core 1 | . . . . 7 1 1 Treads 13 | . 28 28 21 8 . 2 Wheel 1 | . . . . . 2 4 Flight 1 | . . . . 11 3 . Device 11 | . 10 14 20 15 10 . Storage 6 | . 14 14 11 7 . . Processor 11 | . . . 11 11 17 21 Ballistic Gun 11 | . 28 28 12 1 . 5 Ballistic Cannon 3 | . . . 9 9 . . Naked Turns . | . . . . . . . Heaviest Build 30 | 13 14 14 25 30 8 13 Greatest Support 46 | 40 40 40 46 46 20 40 Greatest Overweight (x) 4 | . . . . 4 1 4 Average Overweight (x) . | . . . . . . . Largest Inventory Capacity 6 | 6 6 6 6 6 4 4 Average Capacity 5 | 5 6 6 6 5 4 4 Most Carried 6 | 2 3 3 6 6 4 4 Average Carried 2 | . 1 3 3 5 3 1 Final Capacity 6 | 6 6 6 6 4 4 4 Final Carried 5 | . 3 3 5 4 4 2 Class Distribution -------------------- 80% | Mutant 13% | Skirmisher Dominant Class ---------------- Mutant | -10/Materials Mutant | -10/Mines Skirmisher | -9/Materials Mutant | -8/Materials Mutant | -7/Factory Mutant | -6/Factory Resources | -11 -10 -10 -9 -8 -7 -6 ----------- Run | Scr Mat Min Mat Mat Fac Fac Matter Collected 949 | 260 50 . 264 160 . 215 Remotely . | . . . . . . . Salvage Created 844 | . 123 . 374 24 . 323 Parts 67 | . 12 . 31 4 . 20 Haulers Intercepted . | . . . . . . . Recyclers Shooed 1 | . . . . . . 1 Parts Field Recycled . | . . . . . . . Retrieved Matter . | . . . . . . . Parts Self-Destructed . | . . . . . . . Prevented . | . . . . . . . Kills | -11 -10 -10 -9 -8 -7 -6 ------- Run | Scr Mat Min Mat Mat Fac Fac Combat Hostiles Destroyed 24 | . 4 . 11 2 . 7 Guns 15 | . 4 . 5 . . 6 Cannons 9 | . . . 6 2 . 1 Classes Destroyed 9 | . 3 . 4 . . 2 Builder 2 | . . . 1 . . 1 Recycler 2 | . . . 1 . . 1 Watcher 3 | . 3 . . . . . Swarmer 15 | . 3 . 6 2 . 4 Grunt 4 | . 1 . 3 . . . Brawler 1 | . . . 1 . . . Duelist 1 | . . . . . . 1 Sentry 2 | . . . 1 . . 1 Programmer 1 | . . . . . . 1 Best Kill Streak 6 | . 4 . 4 2 . 6 Combat Bots Only 4 | . 3 . 4 2 . 4 Max Kills in Single Turn 2 | . 1 . 2 1 . 2 Gunslinging . | . . . . . . . Exploded . | . . . . . . . Melee . | . . . . . . . Uniques/NPCs Destroyed . | . . . . . . . Combat | -11 -10 -10 -9 -8 -7 -6 -------- Run | Scr Mat Min Mat Mat Fac Fac Damage Taken 3862 | . 351 . 663 490 516 1842 Core 1332 | . 29 . 66 141 243 853 Absorbed by Shields . | . . . . . . . Core Remaining (%) 82 | 100 . 88 83 74 65 . Volleys Fired 97 | . 19 . 35 3 . 40 Largest 2 | . 2 . 2 1 . 2 Hottest 53 | . 40 . 44 44 . 53 Shots Fired 149 | . 38 . 51 3 . 57 Gun 117 | . 38 . 32 . . 47 Cannon 26 | . . . 19 3 . 4 Launcher 6 | . . . . . . 6 Special . | . . . . . . . Kinetic 143 | . 38 . 51 3 . 51 Thermal . | . . . . . . . Explosive 6 | . . . . . . 6 Electromagnetic . | . . . . . . . Robot Hit Streak 16 | . 9 . 7 1 . 16 Robot Miss Streak 13 | . 3 . 6 13 . 3 Penetration Max 1 | . . . . . . 1 Secondary Targets 6 | . 3 . 2 . . 1 Max Gunslinging Chain 1 | . 1 . 1 . . 1 Shots Hit Robots 104 | . 24 . 31 2 . 47 Core Hits 61 | . 8 . 26 4 . 23 Critical Hits 1 | . . . . . . 1 Critical Kills . | . . . . . . . Critical Parts Destroyed 1 | . . . . . . 1 Melee Attacks . | . . . . . . . Impact . | . . . . . . . Slashing . | . . . . . . . Piercing . | . . . . . . . Sneak Attacks . | . . . . . . . Combat Hostiles . | . . . . . . . Follow-up Attacks . | . . . . . . . Damage Inflicted 1912 | . 348 . 426 28 . 1110 Guns 1329 | . 348 . 138 . . 843 Cannons 405 | . . . 288 28 . 89 Explosions 178 | . . . . . . 178 Melee . | . . . . . . . Ramming . | . . . . . . . Kinetic 1734 | . 348 . 426 28 . 932 Thermal . | . . . . . . . Explosive 178 | . . . . . . 178 Electromagnetic . | . . . . . . . Impact . | . . . . . . . Slashing . | . . . . . . . Piercing . | . . . . . . . Highest Corruption 2 | . . . . . 2 1 Average Corruption 1 | . . . . . 2 1 Corruption Purged . | . . . . . . . Effects 1 | . . . . . . 1 Message Errors 1 | . . . . . . 1 Overload Shots . | . . . . . . . Overflow Damage . | . . . . . . . Projectiles . | . . . . . . . Explosions . | . . . . . . . Melee . | . . . . . . . Knockbacks 13 | . . . 11 1 . 1 Impact . | . . . . . . . Kinetic 13 | . . . 11 1 . 1 Secondary . | . . . . . . . Self-Inflicted Damage . | . . . . . . . Shots . | . . . . . . . Rammed . | . . . . . . . Targets Rammed . | . . . . . . . Kicked . | . . . . . . . Crushed . | . . . . . . . Highest Temperature 23 | . . . 23 16 . 14 Average Temperature 7 | . . . 8 8 . 6 Received Heat Transfer 1068 | . 30 . 177 180 243 438 Siege Activations . | . . . . . . . Robots Corrupted . | . . . . . . . Combat Hostiles . | . . . . . . . Parts Fried . | . . . . . . . Impact Corruptions . | . . . . . . . Robots Melted . | . . . . . . . Combat Hostiles . | . . . . . . . Parts Melted . | . . . . . . . Heat Transferred . | . . . . . . . Parts Sabotaged . | . . . . . . . Parts Stolen . | . . . . . . . Parts Stripped . | . . . . . . . Power Chain Reactions . | . . . . . . . Missiles Intercepted . | . . . . . . . Alert | -11 -10 -10 -9 -8 -7 -6 ------- Run | Scr Mat Min Mat Mat Fac Fac Peak Influence 225 | . 141 . 225 124 76 165 Initial 56 | . . . . 44 56 37 Average 60 | . 50 . 76 60 56 80 Maximum Alert Level 1 | . . . 1 . . . Low Security (%) 98 | 100 100 100 93 100 100 100 Level 1 1 | . . . 6 . . . Level 2 . | . . . . . . . Level 3 . | . . . . . . . Level 4 . | . . . . . . . Level 5 . | . . . . . . . High Security . | . . . . . . . Max Security . | . . . . . . . Squads Dispatched 4 | . . . 1 . 1 2 Investigation . | . . . . . . . Extermination . | . . . . . . . Reinforcement 4 | . . . 1 . 1 2 Assault . | . . . . . . . Garrison . | . . . . . . . Intercept . | . . . . . . . Construction Impeded . | . . . . . . . Haulers Reinforced . | . . . . . . . Stealth | -11 -10 -10 -9 -8 -7 -6 --------- Run | Scr Mat Min Mat Mat Fac Fac Distress Signals 1 | . 1 . . . . . Communications Jammed . | . . . . . . . Distress Signals . | . . . . . . . Times Spotted 70 | . 7 . 18 18 12 15 Peak Tracking Total 12 | . 5 . 4 12 5 4 Tactical Retreats 8 | . . . 1 2 4 1 Traps | -11 -10 -10 -9 -8 -7 -6 ------- Run | Scr Mat Min Mat Mat Fac Fac Traps Triggered 2 | . . . . . 2 . Indirectly . | . . . . . . . Trap Hack Attempts . | . . . . . . . Triggered . | . . . . . . . Disarmed . | . . . . . . . Reprogrammed 6 | . . . . 6 . . Reused 5 | . . . . 5 . . Traps Extracted . | . . . . . . . Installed . | . . . . . . . Triggered 5 | . . . . 5 . . Machines | -11 -10 -10 -9 -8 -7 -6 ---------- Run | Scr Mat Min Mat Mat Fac Fac Machines Disabled . | . . . . . . . Max in Single Turn . | . . . . . . . Machines Sabotaged . | . . . . . . . Garrisons Compromised . | . . . . . . . Overloaded Fab Kills . | . . . . . . . Fab Network Shutdowns . | . . . . . . . Hacking | -11 -10 -10 -9 -8 -7 -6 --------- Run | Scr Mat Min Mat Mat Fac Fac Machines Accessed 7 | . 1 . 2 2 1 1 Terminals 4 | . 1 . . 2 1 . Fabricators . | . . . . . . . Repair Stations 1 | . . . . . . 1 Recycling Units 1 | . . . 1 . . . Scanalyzers 1 | . . . 1 . . . Garrison Access . | . . . . . . . Total Hacks 9 | . 1 . 3 2 1 2 Successful 8 | . 1 . 3 2 1 1 Failed 1 | . . . . . . 1 Catastrophic . | . . . . . . . Database Lockouts . | . . . . . . . Manual . | . . . . . . . Terminals 4 | . 1 . . 2 1 . Fabricators . | . . . . . . . Repair Stations 2 | . . . . . . 2 Recycling Units 1 | . . . 1 . . . Scanalyzers 2 | . . . 2 . . . Garrison Access . | . . . . . . . Terminal Hacks 4 | . 1 . . 2 1 . Record 3 | . 1 . . 1 1 . Reprogram Traps 1 | . . . . 1 . . Fabricator Hacks . | . . . . . . . Repair Station Hacks 1 | . . . . . . 1 Scan Component 1 | . . . . . . 1 Recycling Unit Hacks 1 | . . . 1 . . . Report Inventory 1 | . . . 1 . . . Scanalyzer 2 | . . . 2 . . . Insert Component 1 | . . . 1 . . . Analyze 1 | . . . 1 . . . Garrison Access Hacks . | . . . . . . . Unauthorized Hacks . | . . . . . . . Terminals . | . . . . . . . Fabricators . | . . . . . . . Repair Stations . | . . . . . . . Recycling Units . | . . . . . . . Scanalyzers . | . . . . . . . Garrison Access . | . . . . . . . Data Cores Recovered . | . . . . . . . Used . | . . . . . . . Hacking Detections 3 | . . . . 1 1 1 Full Trace Events . | . . . . . . . Feedback Events . | . . . . . . . Feedback Blocked . | . . . . . . . Robot Schematics Acquired . | . . . . . . . Robots Built . | . . . . . . . Matter . | . . . . . . . Time . | . . . . . . . Total Robot Build Rating . | . . . . . . . Part Schematics Acquired 1 | . . . 1 . . . Parts Built . | . . . . . . . Matter . | . . . . . . . Time . | . . . . . . . Total Part Build Rating . | . . . . . . . Parts Repaired . | . . . . . . . Time . | . . . . . . . Parts Recycled . | . . . . . . . Recycled Matter . | . . . . . . . Retrieved Matter . | . . . . . . . Retrieved Components . | . . . . . . . Parts Scanalyzed 1 | . . . 1 . . . Part Schematics Acquired 1 | . . . 1 . . . Parts Damaged . | . . . . . . . Bothacking | -11 -10 -10 -9 -8 -7 -6 ------------ Run | Scr Mat Min Mat Mat Fac Fac Used RIF Installer . | . . . . . . . Robots Hacked . | . . . . . . . Non-combat . | . . . . . . . Combat . | . . . . . . . Robot Hacks Applied . | . . . . . . . Relay Couplers Released . | . . . . . . . Robots Rewired . | . . . . . . . Allies Hacked . | . . . . . . . Hacks Repelled . | . . . . . . . Allies | -11 -10 -10 -9 -8 -7 -6 -------- Run | Scr Mat Min Mat Mat Fac Fac Total Allies . | . . . . . . . Largest Group . | . . . . . . . Highest-Rated Group . | . . . . . . . Highest-Rated Ally . | . . . . . . . Total Orders . | . . . . . . . Ally Attacks . | . . . . . . . Total Damage . | . . . . . . . Kills . | . . . . . . . Allies Corrupted . | . . . . . . . Allies Melted . | . . . . . . . Intel | -11 -10 -10 -9 -8 -7 -6 ------- Run | Scr Mat Min Mat Mat Fac Fac Robot Analysis Total . | . . . . . . . Derelict Logs Recovered 1 | . . 1 . . . . Drone Launches . | . . . . . . . Drone Recoveries . | . . . . . . . Exploration | -11 -10 -10 -9 -8 -7 -6 ------------- Run | Scr Mat Min Mat Mat Fac Fac Turns Passed 2578 | 61 443 186 590 306 380 612 Spaces Moved 1872 | 35 239 117 250 353 428 450 Core 178 | 5 . . . . 87 86 Treads 835 | 30 239 117 250 77 . 122 Legs 32 | . . . . . 27 5 Wheels 406 | . . . . . 169 237 Hover . | . . . . . . . Flight 421 | . . . . 276 145 . Fastest Speed 34 | 50 160 160 160 34 40 50 Average Speed 108 | 144 160 160 160 64 73 102 Slowest Speed 360 | 160 160 160 160 360 130 250 Overloaded Moves . | . . . . . . . Propulsion Burnouts . | . . . . . . . Robots Hopped 6 | . . . . 6 . . Cave-ins Triggered . | . . . . . . . Exploration Rate (%) 24 | 4 35 34 27 43 18 11 Regions Visited 6 Branch Regions 1 Pre-discovered Areas . | . . . . . . . Known Exits Taken 3 | . . . 1 1 1 . Unknown Exits Taken 3 | 1 1 1 . . . . Scrap Searched . | . . . . . . . Spaces Dug . | . . . . . . . Terrain Destroyed 58 | . . . . . . 58 Melee . | . . . . . . . Projectile 7 | . . . . . . 7 AOE 51 | . . . . . . 51 Terrain Rammed . | . . . . . . . Walls Destroyed . | . . . . . . . Machines Disabled . | . . . . . . . Actions | -11 -10 -10 -9 -8 -7 -6 --------- Run | Scr Mat Min Mat Mat Fac Fac Total 2282 | 46 262 116 391 423 495 549 Wait 220 | . . . 87 45 53 35 Move 1856 | 34 238 116 249 342 427 450 Hop 4 | . . . . 4 . . Pick Up 36 | 6 4 . 8 6 5 7 Fast Attach 10 | . . . . 6 1 3 Attach 35 | 6 1 . 7 5 5 11 Detach 6 | . . . 1 2 1 2 Swap 1 | . . . 1 . . . Drop 17 | . . . 3 10 3 1 Fire 97 | . 19 . 35 3 . 40 Melee . | . . . . . . . Ram . | . . . . . . . Kick . | . . . . . . . Crush . | . . . . . . . Escape Stasis . | . . . . . . . Rewire . | . . . . . . . Trap . | . . . . . . . Miscellaneous . | . . . . . . . Route ------- -11/Scrapyard -10/Materials -10/Mines -9/Materials (discovered 3 exits: *Mat / Sto x2) -8/Materials -7/Factory -6/Factory History --------- Turn | Location | Event 32 | -11/Scrapyard | Discovered new exit (range 16) 62 | -11/Scrapyard | Entered Materials 317 | -10/Materials | Build established: Mutant 491 | -10/Materials | Discovered new exit (range 8) 505 | -10/Materials | Entered Mines 521 | -10/Mines | Met a Derelict bent on vengeance 537 | -10/Mines | Learned 8 Materials zone layouts 632 | -10/Mines | Discovered new exit (range 7) 691 | -10/Mines | Entered Materials 691 | -9/Materials | Evolved 2 slots: Utility x2 692 | -9/Materials | Identified exit to Storage 692 | -9/Materials | Identified exit to Materials 985 | -9/Materials | Build established: Skirmisher 1281 | -9/Materials | Entered another Materials area 1281 | -8/Materials | Evolved 2 slots: Power x1, Propulsion x1 1351 | -8/Materials | Build established: Mutant 1483 | -8/Materials | Lost 4 parts (2n1u1w) 1580 | -8/Materials | Discovered new exit (range 11) 1586 | -8/Materials | Identified exit to Factory 1587 | -8/Materials | Entered Factory 1587 | -7/Factory | Evolved 2 slots: Utility x2 1944 | -7/Factory | Discovered new exit (range 16) 1961 | -7/Factory | Identified exit to Factory 1967 | -7/Factory | Entered another Factory area 1967 | -6/Factory | Evolved 2 slots: Propulsion x1, Utility x1 2178 | -6/Factory | Lost 3 parts (1n1u1w) 2444 | -6/Factory | Core integrity fell below 50% 2472 | -6/Factory | Lost 4 parts (1p1n2w) 2508 | -6/Factory | Core integrity fell below 20% 2579 | -6/Factory | Destroyed by H-66 Slayer with Gauss Rifle Last Messages --------------- 02444_ K-01 Serf collects debris. 02456_ Acquired Lgt. Fission Core. 02462_ Acquired Flak Cannon. 02465_ P-60 Hacker knocked back. 02471_ P-60 Hacker destroyed. 02476_ Acquired Hacking Suite. 02493_ Acquired Wheel. 02544_ Penetrated by Slug. 02551_ Slug penetrates Wall. 02551_ Wheel destroyed. 02551_ Slug penetrates Wall. 02557_ Wheel destroyed. 02560_ Slug penetrates Wall. 02561_ KIRG<&X< 7PMYRLZ:N:IIW3|<83CXRH:48SE94K 02573_ Wheel destroyed. 02576_ Penetrated by Slug. 02576_ Wheel destroyed. 02576_ Penetrated by Slug. 02577_ Dropped Lgt. Fission Core. 02579_ Penetrated by Slug. Map ----- +----------------------------------------------------+ | ?????????????????????????????????????????????????? | | ?????????????????????????????????????????????????? | | ?????????????????????????????????????????????????? | | ?????????????????????????????????????????????????? | | ?????????????????????????????????????????????????? | | ?????????????????????????????? ??????????????? | | ????????????????????????????# ??????????????? | | ????????????????????????????# ??????????????? | | ????????????????????????????# ??????????????? | | ????????????????????????????# ??????????????? | | ????????????????????????????# #??????????????? | | ????????????????????????????# ########???????? | | ?????????????????###????????# # """ ???????? | | ???????????????###+########## # "T" ???????? | | ???????????????# # # ???????? | | ???????????????# " " " " " # # ! ?????? | | ???????????????# " " " " " # # """ ""?????? | | ???????????????# " " " " " # # """ ""?????? | | ???????????????# "g" " " " # # """ """????? | | ???????????????# " " " " " # # ?????? | | ???????????????# " " " " " # # """ ""?????? | | ???????????????# " " " " " # # """ ""?????? | | ???????????????# " " " " " + + """ ""?????? | | ???????????????# " " " " " # # ???? | | ???????????????# * h # ##############?? | | ???????????????# @ # # #?? | | ???????????????############## # #?? | | ???????????????? ????# # """"""" #?? | | ???????????????? ???# # """"""" #?? | | ???????????????# ???# + """"""" #?? | | ???????????????# ??# # """"""" #?? | | ???????????????# ??# # #?? | | ???????????????# ?# # #?? | | ???????????????# ?# #] #?? | | ???????????????# | # # !=] #?? | | ???????????????# # #] ] #?? | | ???????????????# + # ] #?? | | ???????????????# # #### #########?? | | ???????????????# # ###########????? | | ???????????????############## # #????? | | ?????????????????? # """ #????? | | ?????????????????? # """ #????? | | ?????????????????? # """ ###### | | ?????????????????? / # | | ?????????????????? # ] # | | ####???????????????### # [ + | | #?????????????????# # %! # """ | | "" #????############## ########### """ | | #????# # #?????????# """ | | "" #????# """" # #?????????# | +----------------------------------------------------+ Best States ------------- Heat Dissipation 37 Energy Generation 21 Energy Capacity 325 Matter Stores 300 Matter Capacity 300 Sight Range 16 Robot Scan Range 10 Terrain Scan Range 20 Terrain Scan Density 210 Evasion (%) 68 Targeting Accuracy 8 Core Analysis 6 Recoil Reduction 2 Item Schematics ----------------- Grenade Launcher | -9/Materials | Scanalyzed Robot Schematics ------------------ None Fabricated ------------ Nothing Alien Tech Used ----------------- None Achievements -------------- Omniscient Cartographer Challenges ------------ None Game ------ Seed ThrusterStasisLoader Manual? 0 Play Time 00:34:02 Cumulative 28.7 hours Start 2020.10.04 @ 13:18:29 End 2020.10.04 @ 13:47:00 Sessions 1 Manual Loads 0 Difficulty Rogue Special Mode None Game No. 52 Rogue 52 Adventurer 0 Explorer 0 Win Type - Total 0 Types 0/0/0/0/0/0/0/0/0 Lore% 31 Gallery% 32 Achievement% 27 Wizard Run 0 Options --------- ASCII 0 Keyboard 0 Movement Numpad Keybinds 0 Fullscreen 1 Font 24/Smallcaps Map View 76x50 Tactical HUD 1 Map Filters NONE Filters NONE Steam 1 RUN: ac220ed8-428f-4e41-80a7-6ebeef33ece4